bitfinex-derivatives/quotes_BTCF0:USTF0_20250119
["timestamp","ask_amount","ask_price","bid_price","bid_amount"]
[1737318598185,0.46740878,105970.0,105960.0,1.03230976]
[1737318598389,0.46740878,105970.0,105960.0,1.03230974]
[1737318599288,0.46740878,105970.0,105960.0,1.03703675]
[1737318599683,0.46740878,105970.0,105960.0,0.70261047]
[1737318599888,0.46740878,105970.0,105960.0,0.70241415]
[1737318600993,0.46740878,105970.0,105960.0,0.58225956]
[1737318601178,0.51881061,105970.0,105960.0,0.58225956]
[1737318601378,0.51881061,105970.0,105960.0,0.58521401]
[1737318601582,0.83241061,105970.0,105960.0,0.58521401]
[1737318602397,0.41600695,105970.0,105960.0,0.58521401]
[1737318602582,0.41600695,105970.0,105960.0,0.01359006]
[1737318602583,0.52909076,105970.0,105960.0,0.01359006]
[1737318602890,0.58049259,105970.0,105960.0,0.17868638]
[1737318603593,0.58049259,105970.0,105960.0,0.17848975]
[1737318603785,0.46740878,105970.0,105960.0,0.79275148]
[1737318603984,0.46740878,105970.0,105960.0,0.792948]
[1737318604185,0.46740878,105970.0,105960.0,0.79275148]
[1737318604886,0.46740878,105970.0,105960.0,0.792948]
[1737318605085,0.46740878,105970.0,105960.0,1.0869731]
[1737318605290,0.46740878,105970.0,105960.0,1.08677658]
[1737318605694,0.46740878,105970.0,105960.0,1.08677691]
[1737318606286,0.51881061,105970.0,105960.0,0.92187691]
[1737318606482,0.62540878,105970.0,105960.0,0.91596818]
[1737318606691,0.62540878,105970.0,105960.0,0.92187738]
[1737318607298,0.62540878,105970.0,105960.0,0.91596818]
[1737318607594,0.62540878,105970.0,105960.0,0.91596876]
[1737318607782,0.62540878,105970.0,105960.0,0.58154248]
[1737318608885,0.62540878,105970.0,105960.0,0.00295459]
[1737318609693,0.77660878,105970.0,105960.0,0.00295459]
[1737318610088,0.77660878,105970.0,105960.0,0.00295457]
[1737318610493,0.82801061,105970.0,105960.0,0.00295457]
[1737318610691,0.97671061,105970.0,105960.0,0.00295457]
[1737318610891,0.047241,105960.0,105950.0,0.59413545]
[1737318611092,0.51084466,105960.0,105950.0,0.59709009]
[1737318611593,0.51084466,105960.0,105950.0,0.59709011]
[1737318611788,0.51084466,105960.0,105950.0,0.59413545]
[1737318611989,0.3608,105960.0,105950.0,0.59413545]
[1737318612298,0.53325559,105970.0,105950.0,0.60181745]
[1737318612489,0.05140183,105960.0,105950.0,0.64906245]
[1737318613184,0.05140183,105960.0,105950.0,0.99702531]
[1737318613392,0.05140183,105960.0,105950.0,0.94978031]
[1737318613592,0.05140183,105960.0,105950.0,0.94977959]
[1737318614299,0.05140183,105960.0,105950.0,0.94505265]
[1737318614497,0.41220183,105960.0,105950.0,0.94505265]
[1737318615201,0.45944283,105960.0,105950.0,0.94505265]
[1737318615396,0.45944283,105960.0,105950.0,0.9450528]
[1737318617008,0.45944283,105960.0,105950.0,0.94978]
[1737318617205,0.45944283,105960.0,105950.0,1.30035999]
[1737318618004,0.45944283,105960.0,105950.0,1.30036001]
[1737318619233,0.45944283,105960.0,105950.0,1.30036011]
[1737318620312,0.45944283,105960.0,105950.0,0.89651955]
[1737318621720,0.57252664,105960.0,105950.0,0.89651955]
[1737318623015,0.57252664,105960.0,105950.0,0.89651952]
[1737318625514,0.57252664,105960.0,105950.0,0.89651955]
[1737318626917,0.57252664,105960.0,105950.0,0.89651954]
[1737318627325,0.45944283,105960.0,105950.0,1.30126439]
[1737318628823,0.45944283,105960.0,105950.0,1.30126451]
[1737318629525,0.51084466,105960.0,105950.0,0.94978023]
[1737318629727,0.45944283,105960.0,105950.0,0.94978023]
[1737318630027,0.51084466,105960.0,105950.0,0.94978023]
[1737318630626,0.51084466,105960.0,105950.0,0.63075297]
[1737318631627,0.51084466,105960.0,105950.0,0.58360762]
[1737318632531,0.62392847,105960.0,105950.0,0.2843954]
[1737318633029,0.04725,105940.0,105930.0,0.7900369]
[1737318633228,0.82025183,105940.0,105930.0,0.31283793]
[1737318633634,0.96585183,105940.0,105930.0,0.39341947]
[1737318633927,0.96585183,105940.0,105930.0,0.33111372]
[1737318634126,1.01725366,105940.0,105930.0,0.30391345]
[1737318634331,1.01725366,105940.0,105930.0,0.17259845]
[1737318634631,1.01725366,105940.0,105930.0,0.07128145]
[1737318635133,1.01725366,105940.0,105930.0,0.05091863]
[1737318635324,1.01725366,105940.0,105930.0,0.01224272]
[1737318635531,0.047255,105930.0,105920.0,0.22513081]
[1737318635728,0.51085866,105930.0,105920.0,0.21675049]
[1737318637122,0.51085866,105930.0,105920.0,0.21669049]
[1737318637326,0.62393067,105930.0,105910.0,0.3163]
[1737318637633,0.41231802,105920.0,105910.0,0.3163]
[1737318638330,0.45957702,105920.0,105910.0,0.3163]
[1737318639433,0.45957702,105920.0,105910.0,0.26918377]
[1737318639829,0.36091619,105920.0,105910.0,0.31644777]
[1737318640137,0.00011619,105920.0,105910.0,0.67724777]
[1737318641231,0.05151802,105920.0,105910.0,0.67724777]
[1737318642037,0.00011619,105920.0,105910.0,0.67724777]
[1737318643035,0.00011619,105920.0,105910.0,0.68197645]
[1737318643743,0.00011619,105920.0,105910.0,0.32117645]
[1737318644037,0.00011619,105920.0,105910.0,0.31644777]
[1737318644337,0.00011619,105920.0,105910.0,0.32117653]
[1737318644540,0.46720288,105930.0,105910.0,0.72923653]
[1737318644733,0.05500105,105930.0,105910.0,0.73337436]
[1737318645041,0.05500105,105930.0,105920.0,0.3608]
[1737318645230,0.05500105,105930.0,105920.0,0.36552876]
[1737318645633,0.05500105,105930.0,105920.0,0.41278776]
[1737318645835,0.047251,105940.0,105930.0,0.047255]
[1737318646036,0.05530099,105940.0,105930.0,0.36261005]
[1737318646337,0.10670282,105940.0,105930.0,0.36260993]
[1737318646542,0.10670282,105940.0,105930.0,0.36260994]
[1737318646938,0.10670282,105940.0,105930.0,0.36261]
[1737318647640,0.10670282,105940.0,105930.0,0.51591]
[1737318647845,0.10670282,105940.0,105930.0,0.512955]
[1737318648144,0.10670282,105940.0,105930.0,0.51590991]
[1737318648539,0.10670282,105940.0,105930.0,0.51590988]
[1737318648746,0.10670282,105940.0,105930.0,0.512955]
[1737318648945,0.10670282,105940.0,105930.0,0.51590987]
[1737318649253,0.10670282,105940.0,105930.0,0.512955]
[1737318649548,0.10670282,105940.0,105930.0,0.512895]
[1737318650545,0.46750282,105940.0,105930.0,0.512895]
[1737318650741,0.10670282,105940.0,105930.0,0.357395]
[1737318653348,0.46750282,105940.0,105930.0,0.357395]
[1737318653541,0.46750282,105940.0,105930.0,0.31315497]
[1737318653542,0.10670282,105940.0,105930.0,0.31315497]
[1737318653741,0.46750282,105940.0,105930.0,0.3102]
[1737318654651,0.51475682,105940.0,105910.0,0.06186295]
[1737318654848,0.09866083,105920.0,105910.0,0.23874655]
[1737318655151,0.09866083,105920.0,105910.0,0.3782466]
[1737318655548,0.047259,105920.0,105910.0,0.3782466]
[1737318656245,0.047259,105920.0,105910.0,0.79044877]
[1737318656641,0.047259,105920.0,105910.0,1.40653321]
[1737318656845,0.10670282,105940.0,105910.0,1.40653321]
[1737318656846,0.047257,105930.0,105920.0,0.047256]
[1737318657041,0.047257,105930.0,105920.0,0.47305067]
[1737318657247,0.047257,105930.0,105920.0,0.5260809]
[1737318657545,0.047257,105930.0,105920.0,0.1652809]
[1737318657747,0.047253,105940.0,105930.0,0.047252]
[1737318657952,0.047253,105940.0,105930.0,0.22143492]
[1737318659055,0.047253,105940.0,105930.0,0.50102921]
[1737318659855,0.05715856,105940.0,105930.0,0.50102921]
[1737318660053,0.05715856,105940.0,105930.0,0.45377721]
[1737318660054,0.10856039,105940.0,105930.0,0.45377721]
[1737318660646,0.10856039,105940.0,105930.0,0.50103221]
[1737318661549,0.46936039,105940.0,105930.0,0.2825493]
[1737318661750,0.46936039,105940.0,105930.0,0.27959436]
[1737318662650,0.61286039,105940.0,105920.0,0.53614808]
[1737318662851,0.45945683,105930.0,105920.0,0.53910334]
[1737318663458,0.45945683,105930.0,105920.0,0.53910336]
[1737318664259,0.45945683,105930.0,105920.0,0.76424708]
[1737318665455,0.09865683,105930.0,105920.0,0.76424708]
[1737318666253,0.45945683,105930.0,105920.0,0.76424708]
[1737318667259,0.09865683,105930.0,105920.0,0.76424708]
[1737318667968,0.09865683,105930.0,105920.0,0.76897552]
[1737318668159,0.45945683,105930.0,105920.0,0.76897552]
[1737318668458,0.45945683,105930.0,105920.0,0.76424708]
[1737318668653,0.45945683,105930.0,105920.0,0.56931764]
[1737318668957,0.77845683,105930.0,105920.0,0.56931764]
[1737318670752,0.77845683,105930.0,105920.0,0.57522836]
[1737318671651,0.41765683,105930.0,105920.0,0.62248736]
[1737318671962,0.41765683,105930.0,105920.0,0.62248745]
[1737318672755,0.77845683,105930.0,105920.0,0.62248745]
[1737318676663,0.41765683,105930.0,105920.0,0.61657673]
[1737318677560,0.41765683,105930.0,105920.0,0.95306681]
[1737318678169,0.77845683,105930.0,105920.0,0.95306681]
[1737318679072,0.77845683,105930.0,105920.0,0.95306671]
[1737318679262,0.48357686,105940.0,105920.0,1.36526854]
[1737318679468,0.12277686,105940.0,105930.0,0.60705683]
[1737318679763,0.16053729,105950.0,105940.0,0.04725]
[1737318679968,0.16053729,105950.0,105940.0,0.56914288]
[1737318681363,0.1704169,105950.0,105940.0,0.56914194]
[1737318681571,0.10852744,105950.0,105940.0,1.16203413]
[1737318681873,0.10852744,105950.0,105940.0,1.15612512]
[1737318683772,0.10852744,105950.0,105940.0,1.16203424]
[1737318684270,0.10852744,105950.0,105940.0,1.15612512]
[1737318684677,0.10852744,105950.0,105940.0,1.16203425]
[1737318684878,0.10852744,105950.0,105940.0,0.82579959]
[1737318685173,0.10852744,105950.0,105940.0,1.18659959]
[1737318685378,0.10852744,105950.0,105940.0,1.18659952]
[1737318685766,0.10852744,105950.0,105940.0,1.18069047]
[1737318687171,0.46932744,105950.0,105940.0,0.62514047]
[1737318687369,0.46932744,105950.0,105940.0,0.28865039]
[1737318687672,0.46932744,105950.0,105940.0,0.28392243]
[1737318688273,0.46932744,105950.0,105940.0,0.00295497]
[1737318688668,0.46932744,105950.0,105940.0,0.17141065]
[1737318690483,0.46932744,105950.0,105940.0,0.16845568]
[1737318690681,0.46932744,105950.0,105940.0,0.17141069]
[1737318692381,0.46932744,105950.0,105940.0,0.00295501]
[1737318694476,0.46932744,105950.0,105940.0,0.00295498]
[1737318694680,0.46932744,105950.0,105940.0,0.1714653]
[1737318694979,0.00987961,105950.0,105940.0,0.63564489]
[1737318695184,0.60053295,105960.0,105940.0,0.73565232]
[1737318695482,0.05140183,105950.0,105940.0,0.37485232]
[1737318696186,0.05140183,105950.0,105940.0,0.159092]
[1737318696187,0.45944783,105950.0,105940.0,0.159092]
[1737318696385,0.45944783,105950.0,105940.0,0.00768215]
[1737318697682,0.09864783,105950.0,105940.0,0.23235634]
[1737318698085,0.37076669,105960.0,105940.0,0.33100817]
[1737318698388,0.10861052,105960.0,105950.0,0.505146]
[1737318698682,0.10861052,105960.0,105950.0,0.51282815]
[1737318698993,0.10861052,105960.0,105950.0,0.50810067]
[1737318699882,0.10861052,105960.0,105950.0,0.90128835]
[1737318700083,0.10861052,105960.0,105950.0,0.90128812]
[1737318702485,0.10861052,105960.0,105950.0,1.07325452]
[1737318702689,0.10861052,105960.0,105950.0,1.07325453]
[1737318703085,0.06136852,105960.0,105950.0,1.07325453]
[1737318703294,0.00996669,105960.0,105950.0,1.49018338]
[1737318703590,0.45943983,105970.0,105950.0,1.43878155]
[1737318703789,0.10280366,105960.0,105950.0,0.36552702]
[1737318703991,0.047246,105950.0,105910.0,0.94543615]
[1737318704289,0.408051,105940.0,105920.0,0.714359]
[1737318704480,0.45944583,105960.0,105930.0,0.45945283]
[1737318704681,0.4691381,105970.0,105940.0,0.89814883]
[1737318704894,0.41773627,105970.0,105940.0,0.90405774]
[1737318705089,0.41773627,105970.0,105950.0,0.408045]
[1737318705278,0.5163791,105970.0,105960.0,0.4387]
[1737318705689,0.65746822,105970.0,105960.0,0.4387]
[1737318706996,0.5163791,105970.0,105960.0,0.60723798]
[1737318708581,0.5163791,105970.0,105960.0,0.83195529]
[1737318709292,0.4691381,105970.0,105960.0,0.83195529]
[1737318709489,0.09863583,105980.0,105960.0,0.87919429]
[1737318709688,0.047234,105980.0,105970.0,0.3608]
[1737318709890,0.14108912,105970.0,105960.0,0.89814083]
[1737318710089,0.14108912,105970.0,105960.0,0.90404868]
[1737318710291,0.16930695,105980.0,105970.0,0.047237]
[1737318710487,0.16930695,105980.0,105970.0,0.408037]
[1737318710887,0.22070878,105980.0,105970.0,0.41394449]
[1737318711096,0.16930695,105980.0,105970.0,0.41394449]
[1737318711406,0.21653895,105980.0,105970.0,0.408037]
[1737318711897,0.047232,105980.0,105970.0,0.58248233]
[1737318713007,0.047229,105990.0,105980.0,0.047232]
[1737318713198,0.047229,105990.0,105980.0,0.706932]
[1737318713386,0.09863083,105990.0,105980.0,0.706932]
[1737318713590,0.09863083,105990.0,105980.0,0.866532]
[1737318714099,0.09863083,105990.0,105980.0,0.87125754]
[1737318714300,0.09863083,105990.0,105980.0,0.51045754]
[1737318714890,0.51083266,105990.0,105980.0,0.46322554]
[1737318715094,0.51083266,105990.0,105980.0,0.16292554]
[1737318715294,0.51083266,105990.0,105970.0,0.39325529]
[1737318715500,0.45943383,105980.0,105970.0,0.39798136]
[1737318715799,0.45943383,105980.0,105970.0,0.16853798]
[1737318715990,0.45943383,105980.0,105970.0,0.17149185]
[1737318717204,0.45943383,105980.0,105970.0,0.16853798]
[1737318717496,0.45943383,105980.0,105970.0,0.17149186]
[1737318717497,0.51083566,105980.0,105970.0,0.17149186]
[1737318717798,0.45943383,105980.0,105970.0,0.05566668]
[1737318718503,0.45943383,105980.0,105960.0,0.21825154]
[1737318718504,0.047237,105970.0,105960.0,0.21825154]
[1737318718703,0.65714066,105970.0,105960.0,0.21825154]
[1737318719304,0.96124066,105970.0,105960.0,0.21825154]
[1737318719603,0.04725,105940.0,105930.0,0.1539]
[1737318719898,0.45945183,105940.0,105930.0,0.15685494]
[1737318720104,0.45092001,105970.0,105930.0,0.62518656]
[1737318720298,0.60933983,105970.0,105950.0,0.047246]
[1737318720499,0.45943583,105980.0,105960.0,0.201139]
[1737318720795,0.3608,105980.0,105970.0,0.047237]
[1737318721101,0.41220183,105980.0,105970.0,0.05019194]
[1737318721303,0.58150878,105980.0,105970.0,0.05019194]
[1737318721493,0.62874078,105980.0,105970.0,0.05019194]
[1737318722495,0.45943383,105980.0,105970.0,0.05019087]
[1737318722899,0.45943383,105980.0,105970.0,0.00295387]
[1737318723303,0.41220183,105980.0,105970.0,0.05019087]
[1737318723503,0.3608,105980.0,105970.0,0.05019087]
[1737318725105,0.3608,105980.0,105970.0,0.05019086]
[1737318725106,0.45943383,105980.0,105970.0,0.05019086]
[1737318725809,0.09863383,105980.0,105970.0,0.05019086]
[1737318726010,0.45943383,105980.0,105970.0,0.05019086]
[1737318726211,0.45943383,105980.0,105970.0,0.00295386]
[1737318727300,0.61093383,105980.0,105970.0,0.00295386]
[1737318729909,0.61093383,105980.0,105970.0,0.0076802]
[1737318730109,0.61093383,105980.0,105970.0,0.00295386]
[1737318730305,0.61093383,105980.0,105970.0,0.00768022]
[1737318730507,0.61093383,105980.0,105970.0,0.00768024]
[1737318731110,0.45943383,105980.0,105970.0,0.00768028]
[1737318731324,0.46954303,105990.0,105970.0,0.05491728]
[1737318731607,0.46954303,105990.0,105980.0,0.047232]
[1737318731909,0.46954303,105990.0,105980.0,0.19438586]
[1737318732101,0.46954303,105990.0,105980.0,0.19438573]
[1737318732910,0.46954303,105990.0,105980.0,0.19438572]
[1737318734111,0.46954303,105990.0,105980.0,0.19438574]
[1737318734304,0.46954303,105990.0,105980.0,0.35258574]
[1737318735307,0.46954303,105990.0,105980.0,0.30535374]
[1737318736803,0.46954303,105990.0,105980.0,0.30431849]
[1737318738206,0.52094486,105990.0,105980.0,0.30431849]
[1737318739408,0.46954303,105990.0,105980.0,0.30431849]
[1737318741121,0.5826897,105990.0,105980.0,0.30431849]
[1737318741820,0.5826897,105990.0,105980.0,0.30431855]
[1737318742506,0.5826897,105990.0,105980.0,0.14611855]
[1737318742909,0.53128787,105990.0,105980.0,0.14611855]
[1737318743102,0.11314667,105990.0,105980.0,0.71592038]
[1737318743301,0.14143333,106000.0,105990.0,0.047228]
[1737318743503,0.16930695,106010.0,106000.0,0.047224]
[1737318743717,0.57732595,106010.0,106000.0,0.19230225]
[1737318743902,0.57732595,106010.0,106000.0,0.48980225]
[1737318744107,0.45942083,106010.0,106000.0,0.43785317]
[1737318744309,0.45942083,106010.0,106000.0,0.44257812]
[1737318744710,0.45942083,106010.0,106000.0,0.30517812]
[1737318745117,0.45942083,106010.0,106000.0,0.30045317]
[1737318745620,0.09862083,106010.0,106000.0,0.34767717]
[1737318745919,0.46917763,106020.0,106010.0,0.047219]
[1737318746111,0.46917763,106020.0,106010.0,0.05017217]
[1737318746512,0.46917763,106020.0,106010.0,0.18737217]
[1737318746921,0.0097598,106020.0,106010.0,0.18737217]
[1737318747113,0.64274864,106030.0,106010.0,0.19209674]
[1737318748922,0.47344169,106030.0,106010.0,0.19209674]
[1737318749116,0.48311558,106030.0,106010.0,0.19209674]
[1737318749309,0.48311558,106030.0,106010.0,0.19209595]
[1737318750908,0.43171375,106030.0,106020.0,0.047215]
[1737318751110,0.43171375,106030.0,106020.0,0.05016767]
[1737318751319,0.48311558,106030.0,106020.0,0.047215]
[1737318751716,0.00967389,106030.0,106020.0,0.05016758]
[1737318751919,0.408007,106040.0,106020.0,0.14878141]
[1737318752213,0.408007,106040.0,106030.0,0.1554]
[1737318752412,0.45940883,106040.0,106030.0,0.15835258]
[1737318753115,0.45940883,106040.0,106030.0,0.1554]
[1737318753315,0.408007,106040.0,106030.0,0.15835223]
[1737318753517,0.41762394,106040.0,106030.0,0.15835223]
[1737318754416,0.10822577,106040.0,106030.0,0.15835223]
[1737318755022,0.10822577,106040.0,106030.0,0.15835221]
[1737318755718,0.10822577,106040.0,106030.0,0.15835224]
[1737318756116,0.46902577,106040.0,106030.0,0.15835224]
[1737318756327,0.10822577,106040.0,106030.0,0.15835224]
[1737318756916,0.46902577,106040.0,106030.0,0.15835224]
[1737318757117,0.10822577,106040.0,106030.0,0.15835222]
[1737318757521,0.46902577,106040.0,106030.0,0.15835222]
[1737318757716,0.46902577,106040.0,106030.0,0.1554]
[1737318758124,0.10822577,106040.0,106030.0,0.15835231]
[1737318758321,0.46902577,106040.0,106030.0,0.1554]
[1737318758826,0.10822577,106040.0,106030.0,0.1554]
[1737318759329,0.10822577,106040.0,106030.0,0.15835214]
[1737318760028,0.05682394,106040.0,106030.0,0.20556214]
[1737318760825,0.41762394,106040.0,106030.0,0.35856214]
[1737318761030,0.05682394,106040.0,106030.0,0.35856214]
[1737318761426,0.41762394,106040.0,106030.0,0.35856214]
[1737318762029,0.05682394,106040.0,106030.0,0.35856214]
[1737318762429,0.41762394,106040.0,106030.0,0.35856214]
[1737318762633,0.46902577,106040.0,106030.0,0.3084]
[1737318762934,0.41762394,106040.0,106030.0,0.31135221]
[1737318763532,0.41762394,106040.0,106030.0,0.31135228]
[1737318764126,0.05682394,106040.0,106030.0,0.31135228]
[1737318764621,0.41762394,106040.0,106030.0,0.35856228]
[1737318764836,0.05682394,106040.0,106030.0,0.35856228]
[1737318766532,0.41762394,106040.0,106030.0,0.35856228]
[1737318767927,0.41762394,106040.0,106030.0,0.35561]
[1737318768332,0.41762394,106040.0,106030.0,0.35856238]
[1737318768531,0.05682394,106040.0,106030.0,0.35856238]
[1737318768733,0.41762394,106040.0,106030.0,0.35856238]
[1737318769527,0.41762394,106040.0,106030.0,0.35561]
[1737318769729,0.41762394,106040.0,106030.0,0.35856227]
[1737318770233,0.05682394,106040.0,106030.0,0.35856227]
[1737318770436,0.05682394,106040.0,106030.0,0.3585622]
[1737318770735,0.05682394,106040.0,106030.0,0.40996403]
[1737318771028,0.05682394,106040.0,106030.0,0.409964]
[1737318771827,0.05682394,106040.0,106030.0,0.41468746]
[1737318772032,0.41762394,106040.0,106030.0,0.41468746]
[1737318772232,0.05682394,106040.0,106030.0,0.41468746]
[1737318774134,0.05682394,106040.0,106030.0,0.4205917]
[1737318774837,0.41762394,106040.0,106030.0,0.4205917]
[1737318775338,0.41762394,106040.0,106030.0,0.5587917]
[1737318776325,0.05682394,106040.0,106030.0,0.5587917]
[1737318776826,0.05682394,106040.0,106030.0,0.83955447]
[1737318777829,0.05682394,106040.0,106030.0,1.10471191]
[1737318778027,0.05682394,106040.0,106030.0,1.05331008]
[1737318779031,0.00961694,106040.0,106030.0,1.10471191]
[1737318779332,0.70896652,106060.0,106030.0,1.46551191]
[1737318779528,0.75616552,106060.0,106040.0,0.45940383]
[1737318779727,0.70896652,106060.0,106050.0,0.1377]
[1737318779929,0.70896652,106060.0,106050.0,0.15127987]
[1737318780133,0.71868764,106060.0,106050.0,0.15127839]
[1737318780422,0.77008947,106060.0,106050.0,0.15127839]
[1737318780627,0.047201,106050.0,106040.0,0.27185698]
[1737318780823,0.408001,106050.0,106040.0,0.22465498]
[1737318781229,0.45940283,106050.0,106040.0,0.22465498]
[1737318781434,0.60060283,106050.0,106040.0,0.22465498]
[1737318781632,0.047206,106040.0,106030.0,0.1377]
[1737318781836,0.408006,106040.0,106030.0,0.1377]
[1737318782031,0.408006,106040.0,106030.0,0.24989225]
[1737318782032,0.047206,106040.0,106030.0,0.24989225]
[1737318782233,0.408006,106040.0,106030.0,0.39279225]
[1737318782542,0.408006,106040.0,106030.0,1.09246704]
[1737318783042,0.047206,106040.0,106030.0,1.04106521]
[1737318783233,0.408006,106040.0,106030.0,0.99385521]
[1737318783628,0.408006,106040.0,106030.0,0.99385534]
[1737318784637,0.5496458,106040.0,106030.0,0.67139378]
[1737318785740,0.60104763,106040.0,106030.0,0.23849378]
[1737318786034,0.90194763,106040.0,106030.0,0.23258919]
[1737318786244,0.93027559,106040.0,106030.0,0.23258919]
[1737318786826,0.93027559,106040.0,106030.0,0.22786552]
[1737318787032,0.87887376,106040.0,106030.0,0.2325899]
[1737318787233,0.559406,106040.0,106030.0,0.00767667]
[1737318787541,0.61080783,106040.0,106030.0,0.00767667]
[1737318788135,0.76030783,106040.0,106030.0,0.00767667]
[1737318788335,0.76030783,106040.0,106030.0,0.00767681]
[1737318788833,0.76030783,106040.0,106030.0,0.00295262]
[1737318789945,0.93008161,106040.0,106030.0,0.00295262]
[1737318791845,0.94013701,106040.0,106030.0,0.00295262]
[1737318792236,0.94013701,106040.0,106030.0,0.00295256]
[1737318792535,0.91180282,106040.0,106030.0,0.00295256]
[1737318793147,0.91180282,106040.0,106020.0,0.50831323]
[1737318793148,0.04721,106030.0,106020.0,0.50831323]
[1737318793440,0.40801,106030.0,106020.0,0.51126578]
[1737318793846,0.04721,106030.0,106020.0,0.51126578]
[1737318794144,0.04721,106030.0,106020.0,0.55552823]
[1737318794444,0.40801,106030.0,106020.0,0.56320463]
[1737318794946,0.40801,106030.0,106020.0,0.56320458]
[1737318795248,0.40801,106030.0,106020.0,0.88762617]
[1737318795436,0.3608,106030.0,106020.0,0.88762617]
[1737318795641,0.4180624,106040.0,106030.0,0.04610707]
[1737318795946,0.0572624,106040.0,106030.0,0.24608495]
[1737318796347,0.54944159,106050.0,106030.0,0.24608495]
[1737318796534,0.54944159,106050.0,106040.0,0.2843]
[1737318796740,0.60084342,106050.0,106040.0,0.28725244]
[1737318796939,0.60084342,106050.0,106040.0,0.00767583]
[1737318797241,0.61079847,106050.0,106040.0,0.00767583]
[1737318797439,0.55939664,106050.0,106040.0,0.29197583]
[1737318797841,0.61079847,106050.0,106040.0,0.29197583]
[1737318798147,0.46935888,106050.0,106040.0,0.51639591]
[1737318799448,0.46935888,106050.0,106040.0,0.29197583]
[1737318799449,0.61079847,106050.0,106040.0,0.29197583]
[1737318801053,0.61079847,106050.0,106040.0,0.00295244]
[1737318801945,0.78057225,106050.0,106040.0,0.00295244]
[1737318802849,0.96607408,106050.0,106040.0,0.00295244]
[1737318803056,1.10687408,106050.0,106040.0,0.00295244]
[1737318803550,0.96543449,106050.0,106030.0,0.1409]
[1737318803751,0.60620783,106040.0,106030.0,0.14385251]
[1737318804249,0.60620783,106040.0,106030.0,0.14385245]
[1737318804951,0.74760826,106040.0,106030.0,0.14385245]
[1737318808153,0.71934163,106040.0,106030.0,0.36827253]
[1737318808653,0.71934163,106040.0,106030.0,0.36827252]
[1737318809251,0.71934163,106040.0,106030.0,0.37299644]
[1737318810655,0.71934163,106040.0,106030.0,0.37299637]
[1737318811055,0.57254163,106040.0,106030.0,0.37299637]
[1737318811553,0.1131338,106040.0,106030.0,0.42020637]
[1737318811747,0.1131338,106040.0,106030.0,0.8324082]
[1737318811953,0.15135548,106050.0,106040.0,0.047206]
[1737318812153,0.15135548,106050.0,106040.0,0.32715842]
[1737318812455,0.15135548,106050.0,106040.0,0.33188147]
[1737318812855,0.00995505,106050.0,106040.0,0.33188147]
[1737318813056,0.60080126,106060.0,106050.0,0.047201]
[1737318813263,0.60080126,106060.0,106050.0,0.05015286]
[1737318813852,0.60080126,106060.0,106050.0,0.04908406]
[1737318814058,0.60080126,106060.0,106050.0,0.04908401]
[1737318814652,0.60080126,106060.0,106050.0,0.0461322]
[1737318814859,0.65773351,106060.0,106040.0,0.54843343]
[1737318815055,0.45940283,106050.0,106040.0,0.69488536]
[1737318815249,0.408001,106050.0,106040.0,0.69488536]
[1737318815554,0.3608,106050.0,106040.0,0.69488536]
[1737318815759,0.3608,106050.0,106040.0,0.47065593]
[1737318816147,0.61053251,106060.0,106040.0,0.47065593]
[1737318816353,0.3608,106050.0,106040.0,0.47537891]
[1737318816553,0.3608,106050.0,106040.0,0.47065593]
[1737318816747,0.61053251,106060.0,106040.0,0.47065593]
[1737318816953,0.61053251,106060.0,106040.0,0.69488536]
[1737318817753,0.61053251,106060.0,106040.0,0.69960827]
[1737318818753,0.3608,106050.0,106040.0,0.69488529]
[1737318818956,0.61053251,106060.0,106040.0,0.69960833]
[1737318819861,0.61053251,106060.0,106040.0,0.69960827]
[1737318820157,0.55913068,106060.0,106050.0,0.047201]
[1737318820356,0.19833068,106060.0,106050.0,0.10155469]
[1737318820547,0.19833068,106060.0,106050.0,0.10627753]
[1737318820752,0.19833068,106060.0,106050.0,0.0548757]
[1737318821061,0.24973251,106060.0,106050.0,0.0548757]
[1737318821361,0.10833208,106060.0,106050.0,0.0548757]
[1737318821560,0.05693025,106060.0,106050.0,0.0548757]
[1737318822663,0.05693025,106060.0,106050.0,0.59984763]
[1737318824659,0.407994,106070.0,106060.0,0.047197]
[1737318824965,0.047194,106070.0,106060.0,0.19414886]
[1737318825164,0.047194,106070.0,106060.0,0.47484886]
[1737318825363,0.047194,106070.0,106060.0,0.47957111]
[1737318825662,0.407994,106070.0,106060.0,0.47957046]
[1737318826065,0.14140043,106080.0,106070.0,0.047192]
[1737318826366,0.14140043,106080.0,106070.0,0.46706697]
[1737318826564,0.14140043,106080.0,106070.0,0.47296886]
[1737318826952,0.16569847,106090.0,106070.0,0.47296886]
[1737318827257,0.16569847,106090.0,106080.0,0.58948983]
[1737318827460,0.14140043,106090.0,106080.0,0.64384299]
[1737318827654,0.26977378,106100.0,106090.0,0.047183]
[1737318827863,0.26977378,106100.0,106090.0,0.61193616]
[1737318828156,0.24546772,106120.0,106090.0,0.61193616]
[1737318828360,0.24546772,106120.0,106110.0,0.047175]
[1737318828560,0.45937083,106130.0,106110.0,0.407971]
[1737318828758,0.04717,106120.0,106110.0,0.542471]
[1737318829070,0.04717,106120.0,106110.0,1.127171]
[1737318829367,0.407968,106130.0,106120.0,0.04717]
[1737318830867,0.407968,106130.0,106110.0,1.30360437]
[1737318831163,0.41789439,106130.0,106110.0,1.35077637]
[1737318831366,0.41789439,106130.0,106110.0,1.48387637]
[1737318831559,0.04717,106120.0,106110.0,1.48387637]
[1737318831762,0.45937183,106120.0,106110.0,0.94140437]
[1737318832260,0.45937183,106120.0,106110.0,0.35670437]
[1737318833067,0.45937183,106120.0,106110.0,0.1331]
[1737318833457,0.45937183,106120.0,106100.0,0.047176]
[1737318833653,0.3608,106110.0,106100.0,0.180276]
[1737318833865,0.45937183,106120.0,106100.0,0.180276]
[1737318834168,0.45937183,106120.0,106100.0,0.18322617]
[1737318834463,0.45937183,106120.0,106100.0,0.180276]
[1737318835264,0.45937183,106120.0,106110.0,0.047175]
[1737318835460,0.09857183,106120.0,106110.0,0.047175]
[1737318836565,0.41789339,106130.0,106120.0,0.04717]
[1737318836868,0.46929522,106130.0,106120.0,0.04717]
[1737318837069,0.10849522,106130.0,106120.0,0.04717]
[1737318837466,0.05709339,106130.0,106120.0,0.04717]
[1737318837665,0.00992639,106130.0,106120.0,0.04717]
[1737318837865,0.3608,106130.0,106120.0,0.04717]
[1737318838066,0.6491,106140.0,106130.0,0.047166]
[1737318838264,0.70050183,106140.0,106130.0,0.047166]
[1737318838465,0.6491,106140.0,106130.0,0.047166]
[1737318838770,0.56190183,106140.0,106130.0,0.047166]
[1737318838965,0.5105,106140.0,106130.0,0.047166]
[1737318839156,0.56190183,106140.0,106130.0,0.047166]
[1737318839566,0.21077477,106140.0,106130.0,0.047166]
[1737318839761,0.00967294,106140.0,106130.0,0.631866]
[1737318839958,0.3608,106150.0,106140.0,0.631861]
[1737318840165,0.74145783,106160.0,106140.0,0.5847]
[1737318840360,0.74145783,106160.0,106150.0,0.047157]